bitfinex-derivatives/quotes_ETHF0:USTF0_20250626
["timestamp","ask_amount","ask_price","bid_price","bid_amount"]
[1750967515484,2.25278,2440.3,2440.2,26.87705293]
[1750967515781,9.05532891,2440.3,2440.2,26.87705293]
[1750967517190,6.80254891,2440.3,2440.2,27.69637293]
[1750967517384,7.62182891,2440.3,2440.2,27.69637293]
[1750967517885,5.37,2440.6,2440.2,27.2803895]
[1750967518081,0.81912,2440.8,2440.4,11.21572853]
[1750967518286,10.01034891,2441.0,2440.7,0.81912]
[1750967518587,0.81908,2440.9,2440.8,25.675]
[1750967518795,2.18788,2440.9,2440.8,25.675]
[1750967518981,0.81915,2440.7,2440.6,0.81917]
[1750967519183,0.81913,2440.8,2440.7,0.81914]
[1750967519587,7.62167891,2440.8,2440.7,32.57]
[1750967519785,8.99047891,2440.8,2440.7,32.57]
[1750967519991,8.99047891,2440.8,2440.7,33.38915]
[1750967520184,8.17134891,2440.8,2440.7,33.38915]
[1750967520584,0.81909,2440.9,2440.8,0.81912]
[1750967520790,10.82941891,2441.0,2440.9,0.81908]
[1750967520990,3.2078,2441.0,2440.9,0.81908]
[1750967521490,4.02685,2441.0,2440.9,0.81908]
[1750967522190,3.2078,2441.0,2440.9,0.81908]
[1750967522390,4.02685,2441.0,2440.9,0.81908]
[1750967522792,3.2078,2441.0,2440.9,0.81908]
[1750967522995,0.81902,2441.1,2441.0,0.81905]
[1750967523286,7.62156891,2441.1,2441.0,25.655]
[1750967524192,0.81908,2440.9,2440.8,1.20876135]
[1750967524396,0.81908,2440.9,2440.8,32.54]
[1750967525090,0.81908,2440.9,2440.8,33.35912]
[1750967525290,0.81908,2440.9,2440.8,32.54]
[1750967525796,1.4182,2441.0,2440.9,0.81908]
[1750967526091,2.23725,2441.0,2440.9,0.81908]
[1750967526488,1.4182,2441.0,2440.9,0.81908]
[1750967526991,2.23725,2441.0,2440.8,33.3591]
[1750967527392,2.23725,2441.0,2440.9,0.81908]
[1750967527594,3.8822,2441.3,2440.8,32.54]
[1750967527595,0.81901,2441.2,2441.1,0.81902]
[1750967527795,0.81902,2441.1,2441.0,0.81903]
[1750967527991,0.81905,2441.0,2440.9,2.02782135]
[1750967528197,0.81903,2441.1,2441.0,0.81903]
[1750967528694,9.04577891,2441.1,2441.0,0.81903]
[1750967529197,3.2078,2441.3,2441.2,0.81898]
[1750967529389,4.02675,2441.3,2441.2,26.40998]
[1750967529692,4.02675,2441.3,2441.2,33.21698]
[1750967529892,3.2078,2441.3,2441.2,33.21698]
[1750967530087,4.02675,2441.3,2441.2,33.21698]
[1750967530295,0.7209,2441.8,2441.2,32.398]
[1750967530491,6.80254891,2441.8,2441.7,0.81881]
[1750967530795,6.80254891,2441.8,2441.7,1.13776027]
[1750967531494,7.62132891,2441.8,2441.7,0.81881]
[1750967531694,7.62132891,2441.8,2441.6,36.42863]
[1750967531991,0.81881,2441.7,2441.6,35.6098]
[1750967532593,0.8188,2441.8,2441.6,35.93641467]
[1750967532890,0.81881,2441.7,2441.6,35.6098]
[1750967533190,0.81881,2441.7,2441.6,36.42865]
[1750967533495,0.8188,2441.8,2441.7,0.81881]
[1750967533694,0.81881,2441.7,2441.6,4.02663]
[1750967533994,8.25774891,2442.0,2441.7,0.81881]
[1750967534492,0.81878,2441.8,2441.7,0.81881]
[1750967534692,0.81877,2441.9,2441.7,0.81881]
[1750967534896,1.3458,2441.9,2441.8,0.81878]
[1750967535192,8.14834891,2441.9,2441.8,0.81878]
[1750967535392,8.14834891,2441.9,2441.7,0.81879]
[1750967535593,0.81881,2441.7,2441.6,35.5898]
[1750967535794,0.8188,2441.8,2441.6,35.5898]
[1750967535987,0.81881,2441.7,2441.6,35.5898]
[1750967536188,0.81881,2441.7,2441.6,36.40865]
[1750967536491,0.81879,2441.8,2441.7,0.81879]
[1750967536887,7.62133891,2441.8,2441.7,0.81879]
[1750967537295,7.62133891,2441.8,2441.6,35.91046671]
[1750967537996,6.80254891,2441.8,2441.7,0.81881]
[1750967538398,7.62132891,2441.8,2441.7,0.81881]
[1750967538696,0.81881,2441.7,2441.6,36.72928671]
[1750967538991,8.25184891,2441.8,2441.6,35.5898]
[1750967539299,0.81881,2441.7,2441.6,3.2078]
[1750967539598,2.23631,2441.7,2441.6,35.5358]
[1750967540299,2.23631,2441.7,2441.6,36.35465]
[1750967540598,2.23631,2441.7,2441.6,35.5358]
[1750967542300,2.23631,2441.7,2441.6,36.35465]
[1750967542495,2.23631,2441.7,2441.6,35.5358]
[1750967543495,2.23631,2441.7,2441.6,36.35465]
[1750967543496,1.4175,2441.7,2441.6,36.35465]
[1750967543901,2.23631,2441.7,2441.6,36.35465]
[1750967544102,2.23631,2441.7,2441.6,35.5358]
[1750967544697,0.81891,2441.4,2441.3,4.41656135]
[1750967544897,0.81891,2441.4,2441.3,37.85119005]
[1750967545199,0.81891,2441.4,2441.3,36.6424287]
[1750967545403,7.62145891,2441.4,2441.3,35.5038]
[1750967545600,8.31705891,2441.4,2441.3,35.5038]
[1750967545794,8.31705891,2441.4,2441.3,10.0128]
[1750967546105,9.72595891,2441.4,2441.3,35.5018]
[1750967546597,9.72595891,2441.4,2441.3,3.2078]
[1750967546800,9.72595891,2441.4,2441.3,35.4988]
[1750967547001,9.72595891,2441.4,2441.3,36.31775]
[1750967547200,0.681,2441.5,2441.4,0.81891]
[1750967547503,8.30243891,2441.5,2441.4,0.81891]
[1750967548302,0.81891,2441.4,2441.3,36.31773]
[1750967548810,0.81891,2441.4,2441.3,36.29873]
[1750967550206,1.4999,2441.5,2441.4,0.81891]
[1750967550407,8.30244891,2441.5,2441.4,0.81891]
[1750967551204,0.81891,2441.4,2441.3,4.02672]
[1750967551506,2.19291,2441.4,2441.3,29.50972]
[1750967552604,2.19291,2441.4,2441.3,29.89956135]
[1750967552911,2.19291,2441.4,2441.3,4.41656135]
[1750967553101,2.19291,2441.4,2441.3,28.6908]
[1750967553302,2.19291,2441.4,2441.3,29.50975]
[1750967553509,0.8189,2441.5,2441.4,0.81891]
[1750967553703,7.62144891,2441.5,2441.4,0.81891]
[1750967553899,0.81891,2441.4,2441.3,3.2078]
[1750967554209,2.89581,2441.4,2441.3,3.2078]
[1750967554402,9.69835891,2441.4,2441.3,3.2078]
[1750967555009,0.81898,2441.2,2441.1,26.67376135]
[1750967555404,0.81902,2441.1,2441.0,8.4133895]
[1750967555609,2.17712,2441.1,2441.0,33.8893895]
[1750967555806,8.97966891,2441.1,2441.0,33.8893895]
[1750967556010,8.97966891,2441.1,2441.0,33.8853895]
[1750967557613,0.81905,2441.0,2440.9,4.8161895]
[1750967557809,2.16805,2441.0,2440.9,30.2891895]
[1750967558008,12.17839891,2441.0,2440.9,1.6083895]
[1750967558309,0.81922,2440.5,2440.4,3.94442485]
[1750967558515,0.81922,2440.5,2440.4,29.41442485]
[1750967558816,0.81922,2440.5,2440.4,29.42342485]
[1750967559710,2.16822,2440.5,2440.4,29.42342485]
[1750967562707,2.16822,2440.5,2440.4,29.40942485]
[1750967563609,0.81925,2440.4,2440.3,3.2078]
[1750967563810,0.81935,2440.1,2440.0,9.9348]
[1750967564016,0.81935,2440.1,2440.0,35.3838]
[1750967564701,0.81935,2440.1,2440.0,36.20318]
[1750967564906,0.81935,2440.1,2440.0,35.3838]
[1750967565114,0.81935,2440.1,2440.0,36.20318]
[1750967565615,0.81935,2440.1,2440.0,10.75418]
[1750967565916,0.81935,2440.1,2440.0,36.20118]
[1750967566116,1.3864,2440.2,2440.0,36.20116]
[1750967566318,0.81935,2440.1,2440.0,36.20116]
[1750967567216,1.3864,2440.2,2440.1,0.81935]
[1750967567416,0.81928,2440.3,2440.2,0.81932]
[1750967567714,0.81928,2440.3,2440.2,26.25632]
[1750967567918,0.81928,2440.3,2440.2,25.437]
[1750967568216,0.81928,2440.3,2440.2,26.25632]
[1750967569020,0.81926,2440.4,2440.3,0.81928]
[1750967569221,0.81928,2440.3,2440.2,25.437]
[1750967569721,0.81928,2440.3,2440.2,26.25632]
[1750967569921,0.81924,2440.5,2440.4,0.81924]
[1750967570124,0.8191,2440.9,2440.4,38.794321]
[1750967570316,0.8191,2440.9,2440.8,0.81912]
[1750967570517,0.8191,2440.9,2440.8,26.29612]
[1750967570717,0.8191,2440.9,2440.8,25.477]
[1750967571019,0.8191,2440.9,2440.8,26.29612]
[1750967571216,0.81907,2441.0,2440.9,0.81908]
[1750967571426,0.81908,2440.9,2440.8,32.205]
[1750967572519,0.81908,2440.9,2440.8,33.02412]
[1750967573026,0.81908,2440.9,2440.8,32.205]
[1750967574829,0.81908,2440.9,2440.8,33.02412]
[1750967575223,0.81908,2440.9,2440.8,32.205]
[1750967576930,0.81908,2440.9,2440.8,33.02412]
[1750967577130,0.81908,2440.9,2440.8,32.205]
[1750967577827,0.81925,2440.4,2440.2,1.54189]
[1750967578020,0.81925,2440.4,2440.3,32.8827]
[1750967578730,0.81925,2440.4,2440.3,33.70198]
[1750967578930,0.81924,2440.5,2440.4,0.81922]
[1750967579128,0.81924,2440.5,2440.4,26.25522]
[1750967579332,2.19681,2440.6,2440.5,0.81922]
[1750967579832,3.8736,2440.7,2440.6,0.81918]
[1750967579833,4.02697,2440.7,2440.6,0.81918]
[1750967580133,0.81913,2440.8,2440.7,0.81914]
[1750967580327,0.81909,2440.9,2440.8,0.81909]
[1750967580534,0.81909,2440.9,2440.8,26.24509]
[1750967580832,0.81909,2440.9,2440.8,25.426]
[1750967582928,0.81909,2440.9,2440.8,26.24512]
[1750967583125,0.81909,2440.9,2440.8,25.426]
[1750967583323,0.81909,2440.9,2440.8,26.24512]
[1750967584826,0.81905,2441.0,2440.9,0.81905]
[1750967585131,0.81905,2441.0,2440.9,2.28195]
[1750967585332,0.81905,2441.0,2440.9,1.4629]
[1750967586030,1.3415,2441.3,2440.9,1.4629]
[1750967586228,1.3415,2441.3,2441.0,0.81903]
[1750967586229,0.81903,2441.1,2441.0,0.81903]
[1750967586428,1.3415,2441.3,2441.1,0.81899]
[1750967586429,0.81899,2441.2,2441.1,0.81899]
[1750967586736,0.81897,2441.3,2441.2,0.81898]
[1750967586929,0.81894,2441.4,2441.3,0.81894]
[1750967587233,1.3415,2441.6,2441.5,0.81888]
[1750967587234,2.16036,2441.6,2441.5,0.81888]
[1750967587433,3.2078,2441.7,2441.6,0.81885]
[1750967587631,2.42501758,2441.8,2441.4,25.399]
[1750967587632,0.81879,2441.8,2441.7,0.81879]
[1750967587938,0.81879,2441.8,2441.7,29.42959]
[1750967588636,0.81879,2441.8,2441.7,28.6108]
[1750967589129,0.81879,2441.8,2441.7,3.2078]
[1750967589335,2.25968,2441.8,2441.7,25.409]
[1750967591026,0.81878,2441.8,2441.7,25.409]
[1750967591233,1.4498,2441.9,2441.7,26.22779]
[1750967591441,0.81878,2441.8,2441.7,26.22779]
[1750967591745,3.2078,2442.0,2441.7,26.2278]
[1750967592051,0.81878,2441.8,2441.7,26.2278]
[1750967592334,0.81878,2441.8,2441.7,25.409]
[1750967596941,0.81878,2441.8,2441.7,26.22781]
[1750967598236,0.81877,2441.9,2441.8,0.81878]
[1750967599343,0.81878,2441.8,2441.7,26.093]
[1750967599640,0.81878,2441.8,2441.7,26.91181]
[1750967600042,0.81881,2441.7,2441.6,3.2078]
[1750967600243,0.81881,2441.7,2441.6,36.09165]
[1750967600443,0.81881,2441.7,2441.6,36.08965]
[1750967601043,0.81881,2441.7,2441.6,35.2708]
[1750967601248,0.81881,2441.7,2441.6,36.08965]
[1750967601545,0.81881,2441.7,2441.6,35.2708]
[1750967603743,0.81881,2441.7,2441.6,36.08965]
[1750967603945,0.81881,2441.7,2441.6,35.2708]
[1750967605544,0.81891,2441.4,2441.3,5.37693]
[1750967605742,0.81891,2441.4,2441.3,37.41193]
[1750967605940,0.81891,2441.4,2441.3,37.74675036]
[1750967606246,0.8189,2441.5,2441.4,0.8189]
[1750967606449,0.8189,2441.5,2441.4,4.20031719]
[1750967608048,0.81891,2441.4,2441.3,3.54262036]
[1750967608244,0.81891,2441.4,2441.3,35.57762036]
[1750967608447,0.81891,2441.4,2441.3,38.95903755]
[1750967608744,0.81891,2441.4,2441.3,39.77798755]
[1750967609346,0.81891,2441.4,2441.3,38.95903755]
[1750967609548,0.81891,2441.4,2441.3,39.77798755]
[1750967609752,0.81885,2441.7,2441.6,0.81883]
[1750967609941,3.38141719,2442.3,2441.6,31.92921719]
[1750967609942,2.0427,2442.2,2441.6,31.92921719]
[1750967610137,0.81871,2442.0,2441.9,3.38141719]
[1750967610343,0.81871,2442.0,2441.9,29.54016719]
[1750967610742,2.0427,2442.2,2441.9,28.72141719]
[1750967610949,2.86135,2442.2,2442.1,3.38141719]
[1750967611149,2.86135,2442.2,2442.1,35.41141719]
[1750967611843,2.86135,2442.2,2442.1,32.03]
[1750967613152,2.17675,2442.2,2442.1,35.41141719]
[1750967613448,2.17675,2442.2,2442.1,32.03]
[1750967615051,0.81865,2442.2,2442.1,32.03]
[1750967616359,2.22645,2442.2,2442.1,32.03]
[1750967617552,0.81878,2441.8,2441.7,1.61051238]
[1750967617856,0.81878,2441.8,2441.7,37.01992957]
[1750967620749,0.81878,2441.8,2441.7,33.60051238]
[1750967621157,0.81878,2441.8,2441.7,1.61051238]
[1750967621350,2.19958,2441.8,2441.7,33.60051238]
[1750967622454,5.58099719,2441.8,2441.7,1.20894713]
[1750967622650,0.81881,2441.7,2441.6,7.13e-06]
[1750967622857,4.6657,2441.7,2441.3,8.26551238]
[1750967623052,0.81891,2441.4,2441.3,8.26551238]
[1750967623963,0.81891,2441.4,2441.3,1.61051238]
[1750967624359,0.81895,2441.3,2441.2,26.94551238]
[1750967624559,2.27685,2441.3,2441.2,25.335]
[1750967625161,0.81898,2441.2,2441.1,9.8628]
[1750967625358,2.26208,2441.2,2441.1,35.1978]
[1750967626560,2.26208,2441.2,2441.1,36.01682]
[1750967626760,2.26208,2441.2,2441.1,35.1978]
[1750967627864,2.26208,2441.2,2441.1,9.8628]
[1750967628064,2.26208,2441.2,2441.1,35.1998]
[1750967629068,2.26208,2441.2,2441.1,36.01882]
[1750967629651,2.26208,2441.2,2440.9,1.61051238]
[1750967629652,0.81905,2441.0,2440.9,1.61051238]
[1750967629863,0.81905,2441.0,2440.9,33.60351238]
[1750967630058,0.81905,2441.0,2440.9,34.42259238]
[1750967630365,0.81904,2441.1,2441.0,0.81904]
[1750967630563,0.81902,2441.1,2441.0,25.338]
[1750967630858,0.81902,2441.1,2441.0,29.86572054]
[1750967631561,0.81902,2441.1,2441.0,29.86569054]
[1750967632265,2.2621,2441.2,2441.1,0.81902]
[1750967633370,0.81902,2441.1,2441.0,29.86569054]
[1750967633867,2.2621,2441.2,2441.1,0.81902]
[1750967634466,3.2078,2441.5,2441.0,29.04667054]
[1750967634663,2.1046,2441.7,2441.3,6.58921719]
[1750967634854,3.2078,2442.1,2441.8,0.81878]
[1750967634855,0.81877,2441.9,2441.8,0.81878]
[1750967635060,2.1348,2442.1,2441.8,35.37541719]
[1750967635269,2.95349,2442.1,2441.9,3.2078]
[1750967635569,2.1348,2442.1,2442.0,25.338]
[1750967635956,2.95348,2442.1,2442.0,25.338]
[1750967636163,2.1348,2442.1,2442.0,26.15671]
[1750967636364,1.402,2442.1,2442.0,26.15671]
[1750967636560,0.7026,2442.3,2442.1,0.81865]
[1750967636763,1.52123,2442.3,2442.2,25.338]
[1750967637168,2.90603,2442.3,2442.2,25.338]
[1750967638564,2.0874,2442.3,2442.2,26.15665]
[1750967638770,2.90601,2442.3,2442.2,25.338]
[1750967640271,2.90601,2442.3,2442.2,26.15665]
[1750967640573,0.81858,2442.4,2442.3,0.8186]
[1750967640874,0.81858,2442.4,2442.2,38.90435682]
[1750967641275,0.81861,2442.3,2442.2,39.72298682]
[1750967641872,0.81861,2442.3,2442.2,36.34156963]
[1750967642059,0.81861,2442.3,2442.2,3.2078]
[1750967642265,0.81875,2441.9,2441.8,9.8638]
[1750967642574,0.81875,2441.9,2441.8,35.1978]
[1750967642764,0.81875,2441.9,2441.8,3.2078]
[1750967642964,0.81875,2441.9,2441.8,35.1978]
[1750967643164,0.81875,2441.9,2441.8,3.2078]
[1750967643370,0.81875,2441.9,2441.8,35.1978]
[1750967643567,2.0078,2442.2,2441.8,38.57921719]
[1750967643875,0.81863,2442.3,2442.1,4.02646]
[1750967644068,0.8186,2442.4,2442.2,32.81365]
[1750967644576,0.8186,2442.4,2442.3,0.81861]
[1750967644874,0.81859,2442.4,2442.2,32.81362]
[1750967645060,0.81861,2442.3,2442.2,32.81364]
[1750967646072,0.81861,2442.3,2442.2,0.81864]
[1750967646385,0.81861,2442.3,2442.2,31.998]
[1750967646976,0.81861,2442.3,2442.2,25.342]
[1750967647572,0.81861,2442.3,2441.7,52.69223257]
[1750967647573,3.38141719,2442.3,2441.7,54.30274495]
[1750967647774,3.38141719,2442.3,2441.8,31.997]
[1750967647775,5.42795719,2442.3,2441.8,31.997]
[1750967647977,0.81873,2442.0,2441.8,32.81576]
[1750967648370,0.81875,2441.9,2441.8,32.81576]
[1750967648673,0.81873,2442.0,2441.8,32.81576]
[1750967649069,0.81873,2442.0,2441.7,52.69223257]
[1750967649070,0.81878,2441.8,2441.7,3.2078]
[1750967650273,1.3936,2442.0,2441.8,0.81877]
[1750967650274,0.6758,2442.0,2441.8,0.81877]
[1750967650466,0.81877,2441.9,2441.8,29.53218719]
[1750967651477,0.81874,2442.0,2441.9,0.81875]
[1750967651676,0.81875,2441.9,2441.8,29.53217719]
[1750967653381,0.81874,2442.0,2441.9,0.81874]
[1750967653578,0.81875,2441.9,2441.8,29.53217719]
[1750967653883,0.81878,2441.8,2441.7,3.2078]
[1750967654075,2.20788,2441.8,2441.7,28.5388]
[1750967655174,7.20788,2441.8,2441.7,3.2078]
[1750967655376,0.81888,2441.5,2441.4,1.61051238]
[1750967655584,0.81895,2441.3,2441.2,26.97251238]
[1750967656678,0.81895,2441.3,2441.2,1.61051238]
[1750967656874,4.20036719,2441.3,2441.2,1.61051238]
[1750967657878,0.81898,2441.2,2441.1,1.61051238]
[1750967658081,5.38618,2441.2,2441.1,1.61051238]
[1750967659778,5.38618,2441.2,2440.9,2.41242231]
[1750967659779,0.81905,2441.0,2440.9,2.41242231]
[1750967660085,0.81908,2440.9,2440.8,2.41242231]
[1750967660280,4.02688,2440.9,2440.8,2.41242231]
[1750967661082,2.04787,2440.8,2440.3,3.23189518]
[1750967661285,7.40846719,2440.4,2440.3,3.23189518]
[1750967662471,0.81928,2440.3,2440.2,3.23189518]
[1750967662676,2.16698,2440.3,2440.2,3.23189518]
[1750967664179,0.81935,2440.1,2440.0,32.013]
[1750967665580,0.81942,2439.9,2439.8,1.3776]
[1750967665880,0.81942,2439.9,2439.8,26.7166]
[1750967666083,0.81945,2439.8,2439.7,6.656]
[1750967666278,0.81945,2439.8,2439.7,31.998]
[1750967666983,0.81952,2439.6,2439.5,7.83459518]
[1750967667173,0.81952,2439.6,2439.5,11.28279518]
[1750967667378,0.81952,2439.6,2439.5,31.998]
[1750967667575,4.5712,2439.8,2439.3,52.38389518]
[1750967667780,0.81952,2439.6,2439.5,25.342]
[1750967668181,2.18292,2439.6,2439.5,25.342]
[1750967669392,0.81955,2439.5,2439.4,32.002]
[1750967669692,0.81962,2439.3,2439.2,1.3777]
[1750967670391,0.81962,2439.3,2439.2,34.20035]
[1750967670692,0.81962,2439.3,2439.2,1.3777]
[1750967670889,0.81962,2439.3,2439.2,33.3807]
[1750967671090,0.81962,2439.4,2439.2,34.20035]
[1750967671594,0.81962,2439.3,2439.2,34.20035]
[1750967671795,0.8196,2439.4,2439.3,0.81962]
[1750967672097,0.8196,2439.4,2439.1,3.2078]
[1750967672098,0.81971,2439.1,2439.0,6.658]
[1750967672287,0.81971,2439.1,2439.0,32.007]
[1750967672688,0.81971,2439.1,2439.0,32.82672]
[1750967673595,0.81967,2439.2,2439.1,0.81968]
[1750967673794,0.81969,2439.1,2439.0,32.007]
[1750967673991,3.2078,2439.4,2439.1,0.81968]
[1750967674294,0.81964,2439.3,2439.1,0.81968]
[1750967674494,0.81964,2439.3,2439.2,25.349]
[1750967674894,0.81964,2439.3,2439.2,26.16865]
[1750967675284,3.2078,2439.4,2439.3,0.81962]
[1750967675486,4.02722,2440.0,2439.9,0.81942]
[1750967675691,3.2078,2440.0,2439.8,26.17142]
[1750967675899,0.81942,2439.9,2439.8,25.352]
[1750967677102,0.81942,2439.9,2439.8,26.17145]
[1750967677402,3.2078,2440.0,2439.8,26.17143]
[1750967677704,4.02721,2440.0,2439.9,0.81942]
[1750967677905,3.2078,2440.0,2439.9,0.81942]
[1750967678102,3.2078,2440.0,2439.9,2.16952]
[1750967678406,0.81932,2440.2,2440.1,0.81934]
[1750967678704,3.2078,2440.4,2440.1,32.011]
[1750967678894,3.2078,2440.4,2440.1,32.83034]
[1750967679096,2.716,2440.6,2440.1,32.83034]
[1750967679097,0.8192,2440.6,2440.5,0.81921]
[1750967679296,3.2078,2440.7,2440.4,25.352]
[1750967679497,0.8192,2440.6,2440.5,32.011]
[1750967679905,3.2078,2440.7,2440.6,0.81918]
[1750967680102,3.2078,2441.3,2440.6,1.77444406]
[1750967680404,1.3331,2441.4,2440.7,0.7215]
[1750967680706,0.81898,2441.2,2440.9,0.81907]
[1750967680908,0.81898,2441.2,2441.0,7.47705]
[1750967681106,0.81898,2441.2,2441.1,25.35]
[1750967681607,0.81898,2441.2,2441.1,32.008]
[1750967682703,0.81898,2441.2,2440.0,1.20161863]
[1750967682704,2.04795,2440.7,2440.0,1.20161863]
[1750967682917,0.81938,2440.0,2439.9,32.013]
[1750967683600,0.81942,2439.9,2439.8,1.372]
[1750967683805,4.02722,2439.9,2439.8,26.8]
[1750967684005,4.02722,2439.9,2439.8,1.372]
[1750967684206,4.02722,2439.9,2439.8,0.7022]
[1750967684410,0.81945,2439.8,2439.7,32.079]
[1750967684604,0.81945,2439.8,2439.7,6.657]
[1750967684806,2.14455,2439.8,2439.7,6.657]
[1750967685497,0.81952,2439.6,2439.5,0.7022]
[1750967685700,0.81955,2439.5,2439.4,32.088]
[1750967687105,3.2078,2439.6,2439.4,32.088]
[1750967687307,0.81955,2439.5,2439.4,32.088]
[1750967687607,4.02734,2439.6,2439.4,32.088]
[1750967688313,4.02734,2439.6,2439.4,32.90758]
[1750967688507,3.2078,2439.6,2439.5,0.81955]
[1750967688707,4.02732,2439.6,2439.5,0.81955]
[1750967688906,4.02732,2439.6,2439.4,32.90756]
[1750967689104,0.81955,2439.5,2439.4,32.90756]
[1750967689411,4.02734,2439.6,2439.5,0.81955]
[1750967689614,4.02734,2439.6,2439.4,32.90756]
[1750967689814,0.81955,2439.5,2439.4,32.90756]
[1750967690319,0.81965,2439.2,2439.1,0.6882]
[1750967690512,4.02745,2439.2,2439.1,0.6882]
[1750967691006,3.2078,2439.2,2439.1,1.50789]
[1750967691201,0.81965,2439.3,2439.1,1.50787]
[1750967691400,0.81965,2439.3,2439.2,0.81965]
[1750967691602,3.2078,2439.5,2439.2,25.425]
[1750967691813,0.81959,2439.4,2439.3,0.81961]
[1750967692013,0.81959,2439.4,2439.2,26.24463]
[1750967692416,0.81959,2439.4,2439.3,0.81962]
[1750967692917,4.02737,2439.5,2439.3,0.81962]
[1750967693216,0.81959,2439.4,2439.3,0.81962]
[1750967693511,0.81961,2439.4,2439.2,26.24464]
[1750967693716,0.81961,2439.4,2439.3,0.81962]
[1750967694314,3.2078,2439.5,2439.4,0.81959]
[1750967694510,3.2078,2439.5,2439.4,7.47759]
[1750967695516,3.2078,2439.5,2439.4,9.63349]
[1750967696318,3.2078,2439.9,2439.4,17.0217]
[1750967696518,4.02724,2439.9,2439.7,0.81945]
[1750967696712,4.02724,2439.9,2439.8,32.88545]
[1750967697210,3.2078,2439.9,2439.8,32.88545]
[1750967699420,4.02722,2439.9,2439.8,32.88545]
[1750967699920,3.2078,2439.9,2439.8,32.88545]
[1750967700121,4.02722,2439.9,2439.8,0.81945]
[1750967700319,4.02722,2439.9,2439.2,1.60966715]
[1750967700320,0.81959,2439.4,2439.2,1.60966715]
[1750967700511,2.04867,2439.8,2438.8,1.61386484]
[1750967700512,0.81975,2438.9,2438.8,1.61386484]
[1750967700821,0.81975,2438.9,2438.2,1.3953]
[1750967700822,2.04948,2438.8,2438.2,26.8713]
[1750967701015,0.81994,2438.4,2438.3,25.476]
[1750967701217,3.2078,2438.6,2438.3,25.476]
[1750967701516,2.1375,2438.8,2438.4,6.659]
[1750967701719,0.81983,2438.7,2438.5,0.81987]
[1750967701916,0.81983,2438.7,2438.6,25.476]
[1750967702323,0.8198,2438.8,2438.6,25.476]
[1750967703022,3.2078,2438.9,2438.6,25.476]
[1750967703209,2.2328,2438.8,2438.6,26.29585]
[1750967703612,2.2328,2438.8,2438.6,25.476]
[1750967703820,2.2328,2438.8,2438.6,26.29585]
[1750967704219,1.413,2438.8,2438.7,0.81982]
[1750967704518,2.23279,2438.8,2438.6,26.29583]
[1750967704714,4.02745,2439.2,2439.0,0.8197]
[1750967705112,0.81969,2439.1,2438.9,32.94173]
[1750967705313,0.81969,2439.1,2439.0,0.81972]
[1750967705506,0.81969,2439.1,2438.9,32.122]
[1750967705507,0.81972,2439.0,2438.9,32.122]
[1750967706423,0.81971,2439.1,2438.9,32.94174]
[1750967706722,0.81972,2439.0,2438.9,32.122]
[1750967707123,2.16781,2439.1,2438.9,32.122]
[1750967707323,0.81972,2439.0,2438.9,32.122]
[1750967707518,2.17872,2439.0,2438.9,32.122]
[1750967707920,1.359,2439.0,2438.9,32.94175]
[1750967708223,2.17872,2439.0,2438.9,32.94175]
[1750967708526,3.2078,2439.2,2438.9,32.122]
[1750967708727,0.81971,2439.1,2438.9,32.94173]
[1750967709425,3.2078,2439.2,2439.0,0.8197]
[1750967709623,4.02745,2439.2,2439.1,25.445]
[1750967709917,3.2078,2439.2,2439.1,26.26469]
[1750967711118,4.02745,2439.2,2439.1,25.445]
[1750967711320,4.02745,2439.2,2439.1,26.26469]
[1750967711321,3.2078,2439.2,2439.1,26.26469]
[1750967711526,3.2078,2439.2,2439.1,25.445]
[1750967711717,3.2078,2439.2,2439.1,26.26469]
[1750967711917,0.81962,2439.3,2439.2,0.81963]
[1750967712226,0.81962,2439.3,2439.2,32.146]
[1750967712616,0.81962,2439.3,2439.2,32.96563]
[1750967712921,0.81962,2439.3,2439.2,32.146]
[1750967713619,0.81962,2439.3,2439.2,32.141]
[1750967713823,0.81969,2439.1,2439.0,0.81971]
[1750967714024,0.81975,2438.9,2438.8,6.707]
[1750967714225,0.81975,2438.9,2438.8,32.138]
[1750967714428,0.81975,2438.9,2438.8,32.95779]
[1750967714624,4.02755,2438.9,2438.8,32.138]
[1750967715225,4.02755,2438.9,2438.8,32.95779]
[1750967715426,4.02755,2438.9,2438.8,32.138]
[1750967715630,4.02755,2438.9,2438.8,32.95779]
[1750967715930,2.21524,2439.0,2438.9,0.81975]
[1750967716320,2.21524,2439.0,2438.8,32.95777]
[1750967716523,2.21524,2439.0,2438.9,0.81975]
[1750967716723,0.81971,2439.1,2439.0,0.81972]
[1750967716924,3.2078,2439.2,2438.8,32.138]
[1750967717130,0.81975,2438.9,2438.8,32.95778]
[1750967717425,1.366,2439.0,2438.6,3.2078]
[1750967717620,0.81981,2438.8,2438.7,32.151]
[1750967719134,2.25001,2438.8,2438.7,6.708]
[1750967719337,2.94021,2438.8,2438.7,32.154]
[1750967721037,2.94021,2438.8,2438.7,6.708]
[1750967722231,2.1204,2438.8,2438.3,2.42830957]
[1750967722438,0.81992,2438.4,2438.3,9.13630957]
[1750967722640,0.81992,2438.4,2438.3,34.56930957]
[1750967722838,0.81992,2438.4,2438.3,32.141]
[1750967723437,1.4494,2438.5,2438.3,34.56930957]
[1750967723438,2.2693,2438.5,2438.3,34.56930957]
[1750967723640,2.2693,2438.5,2438.4,0.81992]
[1750967724230,0.81992,2438.4,2438.3,35.38923957]
[1750967724432,4.02767,2438.6,2438.5,0.81989]